[Event "46th GER-ch Rapid 2020"]
[Site "Plochingen"]
[Date "2020.09.21"]
[Round "6.8"]
[White "Meissner, Felix"]
[Black "Hartge, Gedeon"]
[Result "1/2-1/2"]
[ECO "B23"]
[WhiteElo "2362"]
[BlackElo "2234"]
[Annotator "ChessBase"]
[PlyCount "133"]
[EventDate "2020.09.19"]
[EventType "swiss"]
[EventCountry "GER"]
[SourceTitle "playchess.com"]
[Source "ChessBase"]
[SourceQuality "1"]
[TimeControl "900+10"]

1. e4 {[%emt 0:00:00]} c5 {[%emt 0:00:00]} 2. Nc3 {[%emt 0:00:00]} Nc6 {[%emt 0:00:01]} 3. Bb5 {[%emt 0:00:15]} Nd4 {[%emt 0:00:04]} 4. Nf3 {[%emt 0:00:03]} Nxb5 {[%emt 0:00:20]} 5. Nxb5 {[%emt 0:00:03]} a6 {[%emt 0:00:01]} 6. Nc3 {[%emt 0:00:11]} e6 {[%emt 0:00:01]} 7. a4 {[%emt 0:00:55]} b6 {[%emt 0:00:11]} 8. d4 {[%emt 0:00:18]} cxd4 {[%emt 0:00:02]} 9. Qxd4 {[%emt 0:00:08]} Bb7 {[%emt 0:02:12]} 10. O-O {[%emt 0:01:49]} Nf6 {[%emt 0:00:19]} 11. Bg5 {[%emt 0:01:53]} Bc5 {[%emt 0:01:26]} 12. Qd3 {[%emt 0:00:17]} h6 {[%emt 0:00:54]} 13. Bh4 {[%emt 0:00:15]} g5 {[%emt 0:02:46]} 14. Bg3 {[%emt 0:00:05]} Nh5 {[%emt 0:00:03]} 15. Rad1 {[%emt 0:02:01]} Nxg3 {[%emt 0:01:08]} 16. hxg3 {[%emt 0:00:02]} Qc7 {[%emt 0:00:14]} 17. e5 {[%emt 0:00:50]} O-O-O {[%emt 0:01:05]} 18. Ne4 {[%emt 0:02:13]} g4 {[%emt 0:01:12]} 19. Nd6+ {[%emt 0:00:36]} Bxd6 {[%emt 0:00:20]} 20. exd6 {[%emt 0:00:02]} Qc6 {[%emt 0:00:00]} 21. Nh4 {[%emt 0:00:35]} Qxa4 {[%emt 0:00:57]} 22. Rfe1 {[%emt 0:00:14]} Kb8 {[%emt 0:00:41]} 23. b3 {[%emt 0:02:09]} Qc6 {[%emt 0:01:06]} 24. c4 {[%emt 0:00:14]} Rdg8 {[%emt 0:00:33]} 25. Qd4 {[%emt 0:00:39]} Qc5 {[%emt 0:02:54]} 26. Qc3 {[%emt 0:00:04]} Qg5 {[%emt 0:00:30]} 27. Re5 {[%emt 0:00:18]} Qf6 {[%emt 0:00:12]} 28. Qe1 {[%emt 0:02:42]} Rg5 {[%emt 0:00:05]} 29. Re3 {[%emt 0:00:05]} Rc8 {[%emt 0:00:18]} 30. Qb4 {[%emt 0:00:09]} Ka7 {[%emt 0:00:05]} 31. Qe1 {[%emt 0:00:27]} Qb2 {[%emt 0:00:15]} 32. Rd2 {[%emt 0:00:22]} Qa3 {[%emt 0:00:08]} 33. Rd1 {[%emt 0:00:14]} Qc5 {[%emt 0:00:01]} 34. Qd2 {[%emt 0:00:08]} Qc6 {[%emt 0:00:06]} 35. Qd4 {[%emt 0:00:04]} Rh5 {[%emt 0:00:12]} 36. Kf1 {[%emt 0:00:16]} Rxh4 {[%emt 0:00:08]} 37. gxh4 {[%emt 0:00:02]} Qxg2+ {[%emt 0:00:01]} 38. Ke1 {[%emt 0:00:13]} Qg1+ {[%emt 0:00:19]} 39. Kd2 {[%emt 0:00:01]} Qxf2+ {[%emt 0:00:03]} 40. Kc1 {[%emt 0:00:01]} Qa2 {[%emt 0:00:30]} 41. Qxg4 {[%emt 0:00:14]} Qa1+ {[%emt 0:00:09]} 42. Kd2 {[%emt 0:00:04]} Qb2+ {[%emt 0:00:04]} 43. Ke1 {[%emt 0:00:03]} f5 {[%emt 0:00:18]} 44. Qg3 {[%emt 0:00:29]} Qf6 {[%emt 0:00:12]} 45. Qe5 {[%emt 0:00:20]} Qxh4+ {[%emt 0:00:01]} 46. Kd2 {[%emt 0:00:05]} Qf2+ {[%emt 0:00:11]} 47. Kc1 {[%emt 0:00:04]} Rc5 {[%emt 0:00:16]} 48. Qc3 {[%emt 0:00:13]} f4 {[%emt 0:00:14]} 49. Rxe6 {[%emt 0:00:04]} Qa2 {[%emt 0:00:10]} 50. Rxh6 {[%emt 0:00:15]} Qa3+ {[%emt 0:00:04]} 51. Qb2 {[%emt 0:00:05]} Qxb2+ {[%emt 0:00:03]} 52. Kxb2 {[%emt 0:00:02]} f3 {[%emt 0:00:03]} 53. Rf6 {[%emt 0:00:03]} a5 {[%emt 0:00:04]} 54. Kc3 {[%emt 0:00:27]} Bc6 {[%emt 0:00:09]} 55. Kd4 {[%emt 0:00:24]} Kb7 {[%emt 0:00:08]} 56. Rd2 {[%emt 0:00:04]} Rg5 {[%emt 0:00:09]} 57. Ke3 {[%emt 0:00:15]} Rg1 {[%emt 0:00:09]} 58. Kd4 {[%emt 0:00:18]} Rg4+ {[%emt 0:00:09]} 59. Kc3 {[%emt 0:00:04]} Rg1 {[%emt 0:00:10]} 60. Rf5 {[%emt 0:00:14]} Rc1+ {[%emt 0:00:28]} 61. Kd4 {[%emt 0:00:07]} Rb1 {[%emt 0:00:05]} 62. Kc3 {[%emt 0:00:03]} Be4 {[%emt 0:00:17]} 63. Rf4 {[%emt 0:00:10]} Bc6 {[%emt 0:00:06]} 64. Rf6 {[%emt 0:00:06]} Rc1+ {[%emt 0:00:04]} 65. Kd4 {[%emt 0:00:02]} Rb1 {[%emt 0:00:02]} 66. Kc3 {[%emt 0:00:01]} Rc1+ {[%emt 0:00:01]} 67. Kb2 {[%emt 0:00:21]} 1/2-1/2

[Event "46th GER-ch Rapid 2020"]
[Site "Plochingen"]
[Date "2020.09.21"]
[Round "6.9"]
[White "Siebrecht, Sebastian"]
[Black "Schulz, Karsten"]
[Result "1-0"]
[ECO "A42"]
[WhiteElo "2418"]
[BlackElo "2294"]
[Annotator "ChessBase"]
[PlyCount "119"]
[EventDate "2020.09.19"]
[EventType "swiss"]
[EventCountry "GER"]
[SourceTitle "playchess.com"]
[Source "ChessBase"]
[SourceQuality "1"]
[TimeControl "900+10"]

1. d4 {[%emt 0:00:00]} g6 {[%emt 0:00:00]} 2. c4 {[%emt 0:00:00]} Bg7 {[%emt 0:00:00]} 3. Nc3 {[%emt 0:00:00]} d6 {[%emt 0:00:00]} 4. e4 {[%emt 0:00:10]} e5 {[%emt 0:00:00]} 5. Nf3 {[%emt 0:00:54]} Nc6 {[%emt 0:00:07]} 6. d5 {[%emt 0:00:11]} Nd4 {[%emt 0:00:08]} 7. h3 {[%emt 0:01:53]} c5 {[%emt 0:00:46]} 8. dxc6 {[%emt 0:00:52]} bxc6 {[%emt 0:00:04]} 9. Bd3 {[%emt 0:00:15]} Nf6 {[%emt 0:01:45]} 10. O-O {[%emt 0:00:09]} O-O {[%emt 0:00:14]} 11. Bg5 {[%emt 0:02:22]} h6 {[%emt 0:00:33]} 12. Be3 {[%emt 0:00:01]} Nd7 {[%emt 0:00:49]} 13. Rc1 {[%emt 0:00:01]} Nc5 {[%emt 0:00:58]} 14. Bb1 {[%emt 0:00:03]} Nce6 {[%emt 0:00:08]} 15. Re1 {[%emt 0:00:58]} a5 {[%emt 0:01:06]} 16. b3 {[%emt 0:00:35]} Qf6 {[%emt 0:00:12]} 17. Nh2 {[%emt 0:00:14]} h5 {[%emt 0:00:39]} 18. Ne2 {[%emt 0:00:25]} Kh7 {[%emt 0:00:39]} 19. Nxd4 {[%emt 0:00:30]} exd4 {[%emt 0:00:29]} 20. Bd2 {[%emt 0:00:29]} Nf4 {[%emt 0:01:11]} 21. Nf3 {[%emt 0:00:09]} c5 {[%emt 0:00:42]} 22. e5 {[%emt 0:00:25]} dxe5 {[%emt 0:00:19]} 23. Nxe5 {[%emt 0:00:26]} Bb7 {[%emt 0:01:49]} 24. Bxf4 {[%emt 0:00:17]} Qxf4 {[%emt 0:00:02]} 25. Qxh5+ {[%emt 0:01:31]} Kg8 {[%emt 0:00:04]} 26. Qe2 {[%emt 0:00:30]} Rae8 {[%emt 0:01:57]} 27. Nd3 {[%emt 0:00:02]} Qg5 {[%emt 0:00:51]} 28. Qg4 {[%emt 0:00:05]} Qxg4 {[%emt 0:01:47]} 29. hxg4 {[%emt 0:00:02]} Bc8 {[%emt 0:00:21]} 30. g5 {[%emt 0:00:21]} f6 {[%emt 0:01:28]} 31. gxf6 {[%emt 0:00:03]} Bxf6 {[%emt 0:00:06]} 32. Nxc5 {[%emt 0:00:03]} Bh4 {[%emt 0:00:24]} 33. g3 {[%emt 0:01:52]} Bg5 {[%emt 0:00:01]} 34. f4 {[%emt 0:00:12]} Be7 {[%emt 0:00:08]} 35. Bxg6 {[%emt 0:00:08]} Bxc5 {[%emt 0:00:07]} 36. Rxe8 {[%emt 0:00:12]} d3+ {[%emt 0:00:13]} 37. Kf1 {[%emt 0:00:13]} Bh3+ {[%emt 0:00:33]} 38. Ke1 {[%emt 0:00:04]} Bb4+ {[%emt 0:00:20]} 39. Kf2 {[%emt 0:00:12]} Rxe8 {[%emt 0:00:16]} 40. Bxe8 {[%emt 0:00:02]} d2 {[%emt 0:00:03]} 41. Rd1 {[%emt 0:02:30]} Bg4 {[%emt 0:00:02]} 42. Rxd2 {[%emt 0:00:06]} Bxd2 {[%emt 0:00:02]} 43. Bc6 {[%emt 0:00:11]} Bf5 {[%emt 0:00:25]} 44. a3 {[%emt 0:00:48]} Kf8 {[%emt 0:00:21]} 45. Ke2 {[%emt 0:00:32]} Bc1 {[%emt 0:00:06]} 46. b4 {[%emt 0:00:01]} Bxa3 {[%emt 0:00:07]} 47. bxa5 {[%emt 0:00:02]} Ke7 {[%emt 0:00:07]} 48. a6 {[%emt 0:00:15]} Bc5 {[%emt 0:00:01]} 49. Kf3 {[%emt 0:00:03]} Kd6 {[%emt 0:00:07]} 50. Bb7 {[%emt 0:00:15]} Bd3 {[%emt 0:00:09]} 51. Bd5 {[%emt 0:00:02]} Bc2 {[%emt 0:00:11]} 52. g4 {[%emt 0:00:02]} Bd1+ {[%emt 0:00:12]} 53. Kg3 {[%emt 0:00:02]} Ke7 {[%emt 0:00:16]} 54. g5 {[%emt 0:00:09]} Be2 {[%emt 0:00:09]} 55. f5 {[%emt 0:00:06]} Bd3 {[%emt 0:00:19]} 56. f6+ {[%emt 0:00:21]} Kf8 {[%emt 0:00:16]} 57. Kf4 {[%emt 0:00:03]} Bg1 {[%emt 0:00:09]} 58. Ke5 {[%emt 0:00:13]} Be3 {[%emt 0:00:11]} 59. Kd6 {[%emt 0:00:11]} Bf4+ {[%emt 0:00:03]} 60. Kc6 {[%emt 0:00:14]} 1-0

[Event "46th GER-ch Rapid 2020"]
[Site "Plochingen"]
[Date "2020.09.21"]
[Round "6.10"]
[White "Langrock, Hannes"]
[Black "Reichmann, Hendrik"]
[Result "1/2-1/2"]
[ECO "E62"]
[WhiteElo "2352"]
[BlackElo "2348"]
[Annotator "ChessBase"]
[PlyCount "61"]
[EventDate "2020.09.19"]
[EventType "swiss"]
[EventCountry "GER"]
[SourceTitle "playchess.com"]
[Source "ChessBase"]
[SourceQuality "1"]
[TimeControl "900+10"]

1. d4 {[%emt 0:00:00]} g6 {[%emt 0:00:00]} 2. c4 {[%emt 0:00:00]} Bg7 {[%emt 0:00:00]} 3. g3 {[%emt 0:00:00]} d6 {[%emt 0:00:02]} 4. Bg2 {[%emt 0:00:01]} Nf6 {[%emt 0:00:08]} 5. Nf3 {[%emt 0:00:04]} O-O {[%emt 0:00:10]} 6. O-O {[%emt 0:00:03]} Nc6 {[%emt 0:01:45]} 7. Nc3 {[%emt 0:00:15]} e5 {[%emt 0:00:20]} 8. dxe5 {[%emt 0:00:17]} dxe5 {[%emt 0:00:46]} 9. Bg5 {[%emt 0:00:11]} Be6 {[%emt 0:01:17]} 10. Qc1 {[%emt 0:00:57]} Bxc4 {[%emt 0:04:55]} 11. Nd2 {[%emt 0:03:40]} Be6 {[%emt 0:01:09]} 12. Nde4 {[%emt 0:00:14]} Nd4 {[%emt 0:02:17]} 13. e3 {[%emt 0:08:41]} Nc6 {[%emt 0:01:28]} 14. f4 {[%emt 0:01:06]} h6 {[%emt 0:01:56]} 15. Bh4 {[%emt 0:00:41]} exf4 {[%emt 0:00:21]} 16. gxf4 {[%emt 0:00:48]} Qe7 {[%emt 0:00:25]} 17. Kh1 {[%emt 0:00:34]} Rad8 {[%emt 0:00:14]} 18. Qe1 {[%emt 0:00:10]} Bf5 {[%emt 0:00:06]} 19. Rd1 {[%emt 0:00:16]} Bxe4 {[%emt 0:00:23]} 20. Nxe4 {[%emt 0:00:04]} Rxd1 {[%emt 0:00:18]} 21. Qxd1 {[%emt 0:00:01]} g5 {[%emt 0:00:01]} 22. Nxf6+ {[%emt 0:00:06]} Bxf6 {[%emt 0:00:01]} 23. Bg3 {[%emt 0:00:12]} Qxe3 {[%emt 0:00:09]} 24. fxg5 {[%emt 0:00:04]} Bxg5 {[%emt 0:00:08]} 25. Qd5 {[%emt 0:00:19]} Qd4 {[%emt 0:00:33]} 26. Qb5 {[%emt 0:00:17]} Qb6 {[%emt 0:00:11]} 27. Qe2 {[%emt 0:00:09]} Nd4 {[%emt 0:00:03]} 28. Qc4 {[%emt 0:00:04]} Ne6 {[%emt 0:00:07]} 29. b3 {[%emt 0:00:05]} c6 {[%emt 0:00:03]} 30. Qe4 {[%emt 0:00:04]} Qd4 {[%emt 0:00:07]} 31. Qf5 {[%emt 0:00:03]} 1/2-1/2

[Event "46th GER-ch Rapid 2020"]
[Site "Plochingen"]
[Date "2020.09.21"]
[Round "7.1"]
[White "Dobrikov, Marco"]
[Black "Neukirchner, Pascal"]
[Result "0-1"]
[ECO "B36"]
[WhiteElo "2332"]
[BlackElo "2259"]
[Annotator "ChessBase"]
[PlyCount "128"]
[EventDate "2020.09.19"]
[EventType "swiss"]
[EventCountry "GER"]
[SourceTitle "playchess.com"]
[Source "ChessBase"]
[SourceQuality "1"]
[TimeControl "900+10"]

1. e4 {[%emt 0:00:00]} c5 {[%emt 0:00:00]} 2. Nf3 {[%emt 0:00:00]} Nc6 {[%emt 0:00:00]} 3. d4 {[%emt 0:00:00]} cxd4 {[%emt 0:00:00]} 4. Nxd4 {[%emt 0:00:00]} g6 {[%emt 0:00:00]} 5. c4 {[%emt 0:00:00]} d6 {[%emt 0:00:00]} 6. Nc3 {[%emt 0:00:02]} Nf6 {[%emt 0:00:00]} 7. Be2 {[%emt 0:00:23]} Nxd4 {[%emt 0:00:00]} 8. Qxd4 {[%emt 0:00:02]} Bg7 {[%emt 0:00:01]} 9. Be3 {[%emt 0:00:07]} O-O {[%emt 0:00:03]} 10. Qd2 {[%emt 0:00:01]} Be6 {[%emt 0:00:02]} 11. Rc1 {[%emt 0:00:05]} Qa5 {[%emt 0:00:07]} 12. f3 {[%emt 0:00:45]} Rfc8 {[%emt 0:00:02]} 13. b3 {[%emt 0:00:03]} Rab8 {[%emt 0:01:32]} 14. Nd5 {[%emt 0:01:22]} Qxd2+ {[%emt 0:00:03]} 15. Kxd2 {[%emt 0:00:02]} Nxd5 {[%emt 0:00:39]} 16. exd5 {[%emt 0:00:51]} Bd7 {[%emt 0:00:30]} 17. a4 {[%emt 0:01:03]} b6 {[%emt 0:01:30]} 18. g4 {[%emt 0:00:41]} f5 {[%emt 0:03:31]} 19. g5 {[%emt 0:00:18]} a6 {[%emt 0:00:43]} 20. f4 {[%emt 0:01:27]} e5 {[%emt 0:02:15]} 21. dxe6 {[%emt 0:00:30]} Bxe6 {[%emt 0:00:02]} 22. Bf3 {[%emt 0:00:24]} d5 {[%emt 0:00:42]} 23. cxd5 {[%emt 0:00:46]} Rd8 {[%emt 0:00:32]} 24. Ke2 {[%emt 0:01:11]} Bxd5 {[%emt 0:00:01]} 25. Bxd5+ {[%emt 0:01:44]} Rxd5 {[%emt 0:00:02]} 26. Rhd1 {[%emt 0:00:02]} Rxd1 {[%emt 0:00:10]} 27. Rxd1 {[%emt 0:00:01]} b5 {[%emt 0:00:33]} 28. a5 {[%emt 0:00:01]} Bc3 {[%emt 0:01:19]} 29. Bb6 {[%emt 0:00:03]} Re8+ {[%emt 0:00:07]} 30. Kf3 {[%emt 0:00:03]} Kf7 {[%emt 0:00:55]} 31. Bc5 {[%emt 0:01:58]} Bxa5 {[%emt 0:00:03]} 32. Ra1 {[%emt 0:00:36]} Bd2 {[%emt 0:01:34]} 33. Rxa6 {[%emt 0:02:45]} Re4 {[%emt 0:00:01]} 34. Bd6 {[%emt 0:00:49]} Re3+ {[%emt 0:00:11]} 35. Kf2 {[%emt 0:00:03]} Rxb3 {[%emt 0:00:11]} 36. Be5 {[%emt 0:00:30]} Be3+ {[%emt 0:00:57]} 37. Ke2 {[%emt 0:00:01]} Bg1 {[%emt 0:00:21]} 38. h4 {[%emt 0:00:43]} Rh3 {[%emt 0:00:45]} 39. Ra1 {[%emt 0:00:54]} Bc5 {[%emt 0:00:22]} 40. Rc1 {[%emt 0:00:34]} Be7 {[%emt 0:00:01]} 41. Rc7 {[%emt 0:00:11]} Ke6 {[%emt 0:00:02]} 42. Rb7 {[%emt 0:00:01]} b4 {[%emt 0:00:14]} 43. Rb6+ {[%emt 0:00:01]} Kd5 {[%emt 0:00:16]} 44. Rb7 {[%emt 0:00:09]} Bc5 {[%emt 0:00:08]} 45. Rxh7 {[%emt 0:00:06]} Ke4 {[%emt 0:00:24]} 46. h5 {[%emt 0:00:20]} Rh2+ {[%emt 0:00:02]} 47. Kd1 {[%emt 0:00:07]} gxh5 {[%emt 0:00:26]} 48. g6 {[%emt 0:00:27]} Rg2 {[%emt 0:00:08]} 49. Rc7 {[%emt 0:00:30]} Be3 {[%emt 0:00:18]} 50. g7 {[%emt 0:00:22]} Bxf4 {[%emt 0:00:24]} 51. Rc8 {[%emt 0:00:13]} Bxe5 {[%emt 0:00:19]} 52. g8=Q {[%emt 0:00:02]} Rxg8 {[%emt 0:00:01]} 53. Rxg8 {[%emt 0:00:02]} b3 {[%emt 0:00:36]} 54. Rg6 {[%emt 0:00:05]} Kd3 {[%emt 0:00:16]} 55. Kc1 {[%emt 0:00:14]} b2+ {[%emt 0:00:07]} 56. Kb1 {[%emt 0:00:01]} f4 {[%emt 0:00:17]} 57. Rg5 {[%emt 0:00:03]} Bd4 {[%emt 0:00:19]} 58. Rxh5 {[%emt 0:00:01]} f3 {[%emt 0:00:01]} 59. Rf5 {[%emt 0:00:19]} Ke2 {[%emt 0:00:16]} 60. Rf4 {[%emt 0:00:28]} f2 {[%emt 0:00:07]} 61. Re4+ {[%emt 0:00:00]} Kd3 {[%emt 0:00:09]} 62. Rf4 {[%emt 0:00:03]} Ke3 {[%emt 0:00:01]} 63. Rf8 {[%emt 0:00:03]} Be5 {[%emt 0:00:03]} 64. Rf5 {[%emt 0:00:06]} Bf4 {[%emt 0:00:05]} 0-1

[Event "46th GER-ch Rapid 2020"]
[Site "Plochingen"]
[Date "2020.09.21"]
[Round "7.2"]
[White "Frischmann, Rick"]
[Black "Kvetny, Mark"]
[Result "0-1"]
[ECO "B29"]
[WhiteElo "2347"]
[BlackElo "2427"]
[Annotator "ChessBase"]
[PlyCount "66"]
[EventDate "2020.09.19"]
[EventType "swiss"]
[EventCountry "GER"]
[SourceTitle "playchess.com"]
[Source "ChessBase"]
[SourceQuality "1"]
[TimeControl "900+10"]

1. e4 {[%emt 0:00:00]} c5 {[%emt 0:00:00]} 2. Nf3 {[%emt 0:00:00]} Nf6 {[%emt 0:00:02]} 3. e5 {[%emt 0:00:00]} Nd5 {[%emt 0:00:01]} 4. Nc3 {[%emt 0:00:00]} Nxc3 {[%emt 0:00:02]} 5. dxc3 {[%emt 0:00:00]} e6 {[%emt 0:00:02]} 6. Bc4 {[%emt 0:00:19]} Nc6 {[%emt 0:00:10]} 7. Bf4 {[%emt 0:00:01]} Qc7 {[%emt 0:00:48]} 8. Qd2 {[%emt 0:00:16]} h6 {[%emt 0:00:14]} 9. h4 {[%emt 0:00:03]} a6 {[%emt 0:00:12]} 10. h5 {[%emt 0:01:59]} b5 {[%emt 0:00:53]} 11. Be2 {[%emt 0:00:01]} Rb8 {[%emt 0:01:22]} 12. Rh3 {[%emt 0:02:13]} c4 {[%emt 0:00:58]} 13. Rg3 {[%emt 0:00:18]} Ne7 {[%emt 0:00:06]} 14. Rg4 {[%emt 0:00:22]} Bb7 {[%emt 0:02:04]} 15. Bg3 {[%emt 0:02:12]} Nf5 {[%emt 0:00:38]} 16. Bh2 {[%emt 0:00:03]} Bd5 {[%emt 0:01:00]} 17. Kf1 {[%emt 0:01:37]} Bc5 {[%emt 0:01:04]} 18. Nd4 {[%emt 0:00:06]} Bxd4 {[%emt 0:00:29]} 19. cxd4 {[%emt 0:00:11]} b4 {[%emt 0:00:43]} 20. Kg1 {[%emt 0:04:05]} Qc6 {[%emt 0:00:15]} 21. Bf4 {[%emt 0:02:10]} a5 {[%emt 0:00:22]} 22. Kh2 {[%emt 0:02:16]} c3 {[%emt 0:02:08]} 23. bxc3 {[%emt 0:00:01]} bxc3 {[%emt 0:01:13]} 24. Qd1 {[%emt 0:00:11]} Be4 {[%emt 0:00:16]} 25. f3 {[%emt 0:00:08]} Bd5 {[%emt 0:00:02]} 26. Bd3 {[%emt 0:00:04]} Nxd4 {[%emt 0:00:36]} 27. Rxg7 {[%emt 0:00:03]} Rb4 {[%emt 0:00:03]} 28. Qc1 {[%emt 0:00:36]} Bxf3 {[%emt 0:01:10]} 29. a3 {[%emt 0:00:01]} Rb2 {[%emt 0:00:08]} 30. Qe3 {[%emt 0:00:06]} Nxc2 {[%emt 0:00:17]} 31. Qa7 {[%emt 0:00:36]} Nxa1 {[%emt 0:00:22]} 32. Qxa5 {[%emt 0:00:05]} Bxg2 {[%emt 0:00:17]} 33. Kg1 {[%emt 0:00:15]} Be4 {[%emt 0:00:33]} 0-1

[Event "46th GER-ch Rapid 2020"]
[Site "Plochingen"]
[Date "2020.09.21"]
[Round "7.3"]
[White "Stern, Rene"]
[Black "Rosner, Jonas"]
[Result "1-0"]
[ECO "D11"]
[WhiteElo "2517"]
[BlackElo "2433"]
[Annotator "ChessBase"]
[PlyCount "83"]
[EventDate "2020.09.19"]
[EventType "swiss"]
[EventCountry "GER"]
[SourceTitle "playchess.com"]
[Source "ChessBase"]
[SourceQuality "1"]
[TimeControl "900+10"]

1. Nf3 {[%emt 0:00:00]} d5 {[%emt 0:00:00]} 2. d4 {[%emt 0:00:00]} Nf6 {[%emt 0:00:00]} 3. c4 {[%emt 0:00:00]} c6 {[%emt 0:00:00]} 4. Nbd2 {[%emt 0:00:02]} Bf5 {[%emt 0:00:01]} 5. Nh4 {[%emt 0:00:01]} Be4 {[%emt 0:00:02]} 6. f3 {[%emt 0:00:08]} Bg6 {[%emt 0:00:03]} 7. Qb3 {[%emt 0:00:01]} Qc7 {[%emt 0:00:16]} 8. g3 {[%emt 0:00:35]} e6 {[%emt 0:00:22]} 9. Bg2 {[%emt 0:01:24]} c5 {[%emt 0:01:20]} 10. cxd5 {[%emt 0:00:40]} exd5 {[%emt 0:00:09]} 11. Qe3+ {[%emt 0:00:57]} Be7 {[%emt 0:01:16]} 12. dxc5 {[%emt 0:00:09]} O-O {[%emt 0:01:02]} 13. Nxg6 {[%emt 0:00:36]} hxg6 {[%emt 0:00:52]} 14. Nb3 {[%emt 0:00:03]} Re8 {[%emt 0:01:39]} 15. Qc3 {[%emt 0:01:26]} Na6 {[%emt 0:01:01]} 16. Be3 {[%emt 0:01:06]} Rac8 {[%emt 0:00:41]} 17. Bh3 {[%emt 0:00:29]} Nd7 {[%emt 0:01:47]} 18. O-O {[%emt 0:01:34]} Bf6 {[%emt 0:00:54]} 19. Bd4 {[%emt 0:01:31]} Bxd4+ {[%emt 0:02:52]} 20. Qxd4 {[%emt 0:00:06]} Rcd8 {[%emt 0:00:21]} 21. Bxd7 {[%emt 0:00:35]} Qxd7 {[%emt 0:00:20]} 22. e3 {[%emt 0:00:12]} Qb5 {[%emt 0:00:33]} 23. Rf2 {[%emt 0:02:16]} Rc8 {[%emt 0:00:38]} 24. Rc2 {[%emt 0:00:40]} Nb4 {[%emt 0:01:02]} 25. Rc3 {[%emt 0:00:29]} a5 {[%emt 0:00:36]} 26. Qd2 {[%emt 0:00:37]} a4 {[%emt 0:00:42]} 27. Nd4 {[%emt 0:00:06]} Qa5 {[%emt 0:00:02]} 28. a3 {[%emt 0:00:32]} Na6 {[%emt 0:00:29]} 29. b4 {[%emt 0:00:39]} axb3 {[%emt 0:00:04]} 30. Nxb3 {[%emt 0:00:01]} Qb5 {[%emt 0:00:35]} 31. Rac1 {[%emt 0:00:25]} Rcd8 {[%emt 0:00:15]} 32. Kf2 {[%emt 0:00:11]} Qa4 {[%emt 0:00:10]} 33. Nd4 {[%emt 0:00:05]} Qd7 {[%emt 0:00:13]} 34. c6 {[%emt 0:00:22]} bxc6 {[%emt 0:00:10]} 35. Rxc6 {[%emt 0:00:25]} Ra8 {[%emt 0:00:09]} 36. Kg2 {[%emt 0:00:07]} Qe7 {[%emt 0:00:04]} 37. R1c3 {[%emt 0:00:06]} Kh7 {[%emt 0:00:06]} 38. Ne2 {[%emt 0:00:11]} Nb8 {[%emt 0:00:05]} 39. Rc7 {[%emt 0:00:01]} Qf6 {[%emt 0:00:07]} 40. Qxd5 {[%emt 0:00:05]} Qa6 {[%emt 0:00:30]} 41. Nf4 {[%emt 0:00:27]} Ra7 {[%emt 0:00:04]} 42. Qxf7 {[%emt 0:00:11]} 1-0

[Event "46th GER-ch Rapid 2020"]
[Site "Plochingen"]
[Date "2020.09.21"]
[Round "7.4"]
[White "Schmaltz, Roland"]
[Black "Meissner, Felix"]
[Result "0-1"]
[ECO "B00"]
[WhiteElo "2449"]
[BlackElo "2362"]
[Annotator "ChessBase"]
[PlyCount "42"]
[EventDate "2020.09.19"]
[EventType "swiss"]
[EventCountry "GER"]
[SourceTitle "playchess.com"]
[Source "ChessBase"]
[SourceQuality "1"]
[TimeControl "900+10"]

1. e4 {[%emt 0:00:00]} e6 {[%emt 0:00:16]} 2. d4 {[%emt 0:00:00]} b6 {[%emt 0:00:25]} 3. Bd3 {[%emt 0:00:00]} Bb7 {[%emt 0:00:01]} 4. Qe2 {[%emt 0:00:10]} d6 {[%emt 0:00:15]} 5. Nf3 {[%emt 0:00:07]} Nd7 {[%emt 0:00:15]} 6. O-O {[%emt 0:00:07]} a6 {[%emt 0:00:15]} 7. c4 {[%emt 0:00:10]} c5 {[%emt 0:00:44]} 8. d5 {[%emt 0:00:12]} e5 {[%emt 0:00:10]} 9. Nc3 {[%emt 0:00:11]} Ne7 {[%emt 0:01:15]} 10. Rb1 {[%emt 0:00:13]} Ng6 {[%emt 0:00:15]} 11. b4 {[%emt 0:00:39]} Bc8 {[%emt 0:00:22]} 12. Bc2 {[%emt 0:00:20]} Be7 {[%emt 0:00:35]} 13. Be3 {[%emt 0:01:09]} O-O {[%emt 0:00:10]} 14. Rb2 {[%emt 0:00:28]} Nf6 {[%emt 0:00:48]} 15. bxc5 {[%emt 0:00:14]} bxc5 {[%emt 0:00:06]} 16. Ne1 {[%emt 0:02:12]} Ng4 {[%emt 0:00:55]} 17. Nd3 {[%emt 0:03:02]} Bg5 {[%emt 0:00:54]} 18. Bxg5 {[%emt 0:01:19]} Qxg5 {[%emt 0:00:02]} 19. g3 {[%emt 0:00:55]} Qh6 {[%emt 0:01:52]} 20. f4 {[%emt 0:01:10]} exf4 {[%emt 0:00:36]} 21. gxf4 {[%emt 0:00:04]} f5 {[%emt 0:00:43]} 0-1

[Event "46th GER-ch Rapid 2020"]
[Site "Plochingen"]
[Date "2020.09.20"]
[Round "7.8"]
[White "Petkidis, Anthony"]
[Black "Richter, Nils"]
[Result "1/2-1/2"]
[ECO "B48"]
[WhiteElo "2406"]
[BlackElo "2307"]
[Annotator "ChessBase"]
[PlyCount "62"]
[EventDate "2020.09.19"]
[EventType "swiss"]
[EventCountry "GER"]
[SourceTitle "playchess.com"]
[Source "ChessBase"]
[SourceQuality "1"]
[TimeControl "900+10"]

1. e4 {[%emt 0:00:00]} c5 {[%emt 0:00:00]} 2. Nf3 {[%emt 0:00:00]} e6 {[%emt 0:00:00]} 3. d4 {[%emt 0:00:00]} cxd4 {[%emt 0:00:00]} 4. Nxd4 {[%emt 0:00:00]} Nc6 {[%emt 0:00:00]} 5. Nc3 {[%emt 0:00:00]} Qc7 {[%emt 0:00:00]} 6. Be3 {[%emt 0:00:03]} a6 {[%emt 0:00:00]} 7. Be2 {[%emt 0:00:14]} Nf6 {[%emt 0:00:00]} 8. a3 {[%emt 0:00:02]} b5 {[%emt 0:00:00]} 9. Nxc6 {[%emt 0:00:08]} dxc6 {[%emt 0:00:36]} 10. f4 {[%emt 0:00:10]} Bb7 {[%emt 0:00:20]} 11. e5 {[%emt 0:00:23]} Rd8 {[%emt 0:00:24]} 12. Bd3 {[%emt 0:00:50]} Nd5 {[%emt 0:00:18]} 13. Nxd5 {[%emt 0:00:08]} cxd5 {[%emt 0:00:57]} 14. Bd4 {[%emt 0:00:25]} Bc5 {[%emt 0:00:50]} 15. c3 {[%emt 0:00:04]} O-O {[%emt 0:00:20]} 16. O-O {[%emt 0:01:14]} Qb6 {[%emt 0:00:33]} 17. Kh1 {[%emt 0:00:16]} g6 {[%emt 0:00:17]} 18. Be2 {[%emt 0:00:14]} Rc8 {[%emt 0:00:35]} 19. Qd2 {[%emt 0:00:06]} a5 {[%emt 0:00:31]} 20. b4 {[%emt 0:00:22]} axb4 {[%emt 0:00:41]} 21. axb4 {[%emt 0:00:03]} Bxd4 {[%emt 0:00:04]} 22. cxd4 {[%emt 0:00:04]} Rc4 {[%emt 0:00:09]} 23. Bxc4 {[%emt 0:00:20]} dxc4 {[%emt 0:00:02]} 24. Ra3 {[%emt 0:03:15]} Rd8 {[%emt 0:00:57]} 25. Rd1 {[%emt 0:00:17]} Qc6 {[%emt 0:00:22]} 26. Rg3 {[%emt 0:00:52]} Qe4 {[%emt 0:00:55]} 27. h3 {[%emt 0:00:21]} h5 {[%emt 0:00:41]} 28. Qe3 {[%emt 0:00:39]} Qc2 {[%emt 0:00:07]} 29. Qd2 {[%emt 0:00:08]} Qe4 {[%emt 0:00:02]} 30. Qe3 {[%emt 0:02:35]} Qc2 {[%emt 0:00:02]} 31. Qd2 {[%emt 0:00:30]} Qe4 {[%emt 0:00:02]} 1/2-1/2